Cogmind - Beta 16 @@@ ROGUE MODE // 2025.10.24 @ 10:53:40 Player: Anting Result: Destroyed by D-53 Grenadier with Mini Grenade Launcher Performance ------------- Evolutions (0) 0 Regions Visited (2) 400 Robots Destroyed (35) 175 Value Destroyed (617) 617 Prototype IDs (2) 40 Alien Tech Used (0) 0 Bonus (0) 0 TOTAL SCORE: 1232 Bonus ------- None Cogmind --------- Core Integrity 0/250 Matter 300/300 Energy 250/250 System Corruption 0% Temperature Cool (0) Movement Walking (400) Ox4 Location -10/Mines Parts ------- > --- POWER (1) -------- Ion Engine > --- PROPULSION (2) --- Aluminum Leg > --- UTILITY (2) ------ High-capacity Storage Unit > --- WEAPON (2) ------- Light Assault Rifle Light Assault Rifle > --- INVENTORY (20) --- Light Nuclear Core Light Treads Light Treads Light Treads Light Treads Huge Storage Unit High-capacity Matter Pod (200) High-capacity Matter Pod (166) Light Armor Plating Hacking Suite Assault Rifle Light Cannon Light Cannon Light Cannon Grenade Launcher Grenade Launcher Grenade Launcher Grenade Launcher Grenade Launcher Peak State ------------ > --- POWER ------------ Ion Engine > --- PROPULSION ------- Aluminum Leg Aluminum Leg > --- UTILITY ---------- High-capacity Storage Unit Seismic Detector > --- WEAPON ----------- Assault Rifle Light Assault Rifle > --- INVENTORY -------- Light Nuclear Core Light Treads Light Treads Light Treads Light Treads Huge Storage Unit High-capacity Matter Pod High-capacity Matter Pod Hacking Suite Assault Rifle Light Assault Rifle Light Assault Rifle Light Cannon Light Cannon Light Cannon Grenade Launcher [Rating: 9] Favorites ----------- Power Ion Engine Engine Ion Engine Propulsion Aluminum Leg Leg Aluminum Leg Utility Seismic Detector Device Seismic Detector Storage High-capacity Storage Unit Weapon Light Assault Rifle Energy Gun Small Laser Ballistic Gun Light Assault Rifle Launcher Grenade Launcher Build | -11 -10 -10 ------- Run | Yrd Mat Min Slots Evolved . | . . . Power . | . . . Propulsion . | . . . Utility . | . . . Weapon . | . . . Parts Attached 15 | 7 8 . Power 2 | 1 1 . Engine 2 | 1 1 . Core . | . . . Reactor . | . . . Propulsion 4 | 2 2 . Treads . | . . . Leg 4 | 2 2 . Wheel . | . . . Hover . | . . . Flight . | . . . Utility 4 | 2 2 . Device 1 | 1 . . Storage 3 | 1 2 . Processor . | . . . Hackware . | . . . Protection . | . . . Artifact . | . . . Weapon 5 | 2 3 . Energy Gun 1 | 1 . . Energy Cannon . | . . . Ballistic Gun 3 | 1 2 . Ballistic Cannon . | . . . Launcher 1 | . 1 . Special Weapon . | . . . Impact Weapon . | . . . Slashing Weapon . | . . . Piercing Weapon . | . . . Special Melee Weapon . | . . . Unidentified Prototypes . | . . . Parts Lost 5 | . 3 2 Power . | . . . Propulsion 3 | . 2 1 Utility 1 | . . 1 Weapon 1 | . 1 . Highest Loss Streak 1 | . 1 1 To Critical Strikes . | . . . Average Backups 13 | 3 13 19 Power 1 | . 1 1 Propulsion 3 | 1 3 4 Utility 3 | . 3 5 Weapon 5 | . 5 9 Tool/Special . | . . . Unused Backups 20 | . 2 18 Power 1 | . . 1 Propulsion 4 | . . 4 Utility 5 | . . 5 Weapon 10 | . 2 8 Tool/Special . | . . . Average Slot Usage (%) 91 | . 92 84 Engine 14 | . 14 14 Leg 21 | . 20 27 Device 12 | . 14 . Storage 14 | . 14 14 Energy Gun 2 | . 3 . Ballistic Gun 24 | . 24 28 Peak Build Rating 9 | 7 9 9 Average Rating 7 | 5 7 7 On Entrance 5 | . 7 9 Avg Prop Armor Cover (%) . | . . . Naked Turns . | . . . Heaviest Build 50 | 14 50 47 Greatest Support 20 | 20 20 20 Greatest Overweight (x) 4 | 4 4 4 Average Overweight (x) 2 | . 2 2 Largest Inventory Capacity 20 | 8 20 20 Average Capacity 16 | 7 16 20 Most Carried 20 | 5 20 19 Average Carried 13 | 3 13 19 Final Capacity 20 | 8 20 20 Final Carried 19 | 4 19 19 Class Distribution -------------------- 81% | Mutant 18% | Scavenger-Mutant Dominant Class ---------------- Mutant | -10/Materials Scavenger-Mutant | -10/Mines Resources | -11 -10 -10 ----------- Run | Yrd Mat Min Matter Collected 992 | 300 541 151 Remotely . | . . . Salvage Created 963 | 143 739 81 Parts 75 | 13 59 3 Haulers Intercepted 2 | . 2 . Recyclers Shooed 2 | . 2 . Parts Field Recycled . | . . . Retrieved Matter . | . . . Parts Self-Destructed . | . . . Prevented . | . . . Parts Restored . | . . . Kills | -11 -10 -10 ------- Run | Yrd Mat Min Combat Hostiles Destroyed 19 | . 17 2 Guns 16 | . 14 2 AOE 3 | . 3 . Classes Destroyed 9 | 2 7 . Worker 1 | . 1 . Builder 3 | . 3 . Tunneler 4 | 4 . . Hauler 2 | . 2 . Recycler 2 | 1 1 . Operator 1 | . 1 . Watcher 3 | . 3 . Swarmer 8 | . 8 . Grunt 11 | . 9 2 Best Kill Streak 6 | 5 6 2 Combat Bots Only 3 | . 3 2 Max Kills in Single Turn 3 | 2 3 1 Gunslinging . | . . . Exploded 2 | . 2 . Melee . | . . . Uniques/NPCs Destroyed . | . . . Combat | -11 -10 -10 -------- Run | Yrd Mat Min Hostile Shots Fired 113 | . 92 21 Missed 30 | . 26 4 Hits 83 | . 66 17 Projectile 83 | . 66 17 AOE 4 | . . 4 Critical Strikes 1 | . . 1 Damage Taken 1065 | . 706 359 Core 270 | . 152 118 Absorbed by Shields . | . . . Core Remaining (%) 100 | 100 . . Volleys Fired 94 | 10 73 11 Largest 2 | 2 2 2 Hottest 60 | 60 60 40 Shots Fired 184 | 20 142 22 Gun 180 | 20 138 22 Cannon . | . . . Launcher 4 | . 4 . Special . | . . . Kinetic 142 | 10 110 22 Thermal 38 | 10 28 . Explosive 4 | . 4 . Electromagnetic . | . . . Robot Hit Streak 15 | 6 14 15 Robot Miss Streak 8 | 2 8 1 Penetration Max . | . . . Secondary Targets 4 | . 3 1 Max Gunslinging Chain 1 | . 1 1 Shots Hit Robots 121 | 13 89 19 Core Hits 61 | 6 48 7 Critical Kills . | . . . Critical Parts Destroyed 1 | . 1 . Critical Strikes 1 | . 1 . Destroy 1 | . 1 . Melee Attacks . | . . . Impact . | . . . Slashing . | . . . Piercing . | . . . Sneak Attacks . | . . . Combat Hostiles . | . . . Follow-up Attacks . | . . . Damage Inflicted 1680 | 168 1354 158 Guns 1297 | 168 978 151 Cannons . | . . . Explosions 358 | . 358 . Melee . | . . . Ramming 25 | . 18 7 Kinetic 986 | 81 754 151 Thermal 311 | 87 224 . Explosive 358 | . 358 . Electromagnetic . | . . . Impact . | . . . Slashing . | . . . Piercing . | . . . Highest Corruption . | . . . Average Corruption . | . . . Corruption Purged . | . . . Corruption Blocked . | . . . Overload Shots . | . . . Overflow Damage 3 | . 3 . Projectiles . | . . . Explosions 3 | . 3 . Melee . | . . . Knockbacks . | . . . Impact . | . . . Kinetic . | . . . Secondary . | . . . Self-Inflicted Damage . | . . . Shots . | . . . Rammed . | . . . Targets Rammed 9 | . 7 2 Kicked 9 | . 7 2 Crushed . | . . . Highest Temperature 120 | 20 120 67 Average Temperature 42 | 20 47 33 Received Heat Transfer 402 | . 258 144 Siege Activations . | . . . Martial Activations . | . . . Shielding Activations . | . . . Robots Disrupted . | . . . Combat Hostiles . | . . . Robots Corrupted . | . . . Combat Hostiles . | . . . Parts Fried . | . . . Impact Corruptions . | . . . Robots Melted . | . . . Combat Hostiles . | . . . Parts Melted . | . . . Heat Transferred 700 | 200 500 . Parts Sabotaged . | . . . Parts Stolen . | . . . Parts Stripped . | . . . Power Chain Reactions . | . . . Alert | -11 -10 -10 ------- Run | Yrd Mat Min Maximum Alert Level . | . . . Low Security (%) 100 | 100 100 100 Level 1 . | . . . Level 2 . | . . . Level 3 . | . . . Level 4 . | . . . Level 5 . | . . . High Security . | . . . Max Security . | . . . Peak Influence 174 | 20 174 96 Initial 66 | . . 66 Average 35 | 3 37 25 Influence Increases 639 | 25 564 50 Destroy 0b10 Robot/C 380 | . 340 40 Destroy 0b10 Robot/NC 80 | 25 55 . Destroy Leader 90 | . 80 10 Successful Hack 10 | . 10 . Select Force Hacks 60 | . 60 . Destroy Structure 19 | . 19 . Influence Decreases 639 | 25 392 222 Entered New Map 106 | . . 106 Time Decay 493 | 25 362 106 Lost Part 40 | . 30 10 Squads Dispatched 4 | . 4 . Investigation 2 | . 2 . Extermination . | . . . Reinforcement 2 | . 2 . Assault . | . . . Garrison . | . . . Intercept . | . . . Searches Triggered . | . . . Construction Impeded . | . . . Haulers Reinforced . | . . . Active Scanning Responses . | . . . Cargo Convoy Interrupts . | . . . Stealth | -11 -10 -10 --------- Run | Yrd Mat Min Distress Signals 1 | . 1 . Communications Jammed . | . . . Distress Signals . | . . . Times Spotted 29 | . 26 3 Peak Tracking Total 4 | . 4 2 Tactical Retreats . | . . . Traps | -11 -10 -10 ------- Run | Yrd Mat Min Traps Triggered . | . . . Indirectly . | . . . Trap Hack Attempts . | . . . Triggered . | . . . Disarmed . | . . . Reprogrammed . | . . . Reused . | . . . Traps Extracted . | . . . Installed . | . . . Triggered . | . . . Machines | -11 -10 -10 ---------- Run | Yrd Mat Min Machines Disabled . | . . . Max in Single Turn . | . . . Machines Repaired . | . . . Machines Dismantled . | . . . Machines Sabotaged . | . . . Overloaded Fab Kills . | . . . Hacking | -11 -10 -10 --------- Run | Yrd Mat Min Machines Accessed 8 | . 8 . Terminals 6 | . 6 . Fabricators . | . . . Repair Stations . | . . . Recycling Units 2 | . 2 . Scanalyzers . | . . . Garrison Access . | . . . Total Hacks 22 | . 22 . Successful 11 | . 11 . Failed 11 | . 11 . Catastrophic 3 | . 3 . Database Lockouts . | . . . Manual 18 | . 18 . Terminals 20 | . 20 . Fabricators . | . . . Repair Stations . | . . . Recycling Units 2 | . 2 . Scanalyzers . | . . . Garrison Access . | . . . Terminal Hacks 4 | . 4 . Part Schematic 2 | . 2 . Prototype ID Bank 1 | . 1 . Zone Layout 1 | . 1 . Fabricator Hacks . | . . . Repair Station Hacks . | . . . Recycling Unit Hacks . | . . . Scanalyzer . | . . . Garrison Access Hacks . | . . . Unauthorized Hacks 7 | . 7 . Terminals 5 | . 5 . Botnet 1 | . 1 . Skim 4 | . 4 . Fabricators . | . . . Repair Stations . | . . . Recycling Units 2 | . 2 . Tunnel 2 | . 2 . Scanalyzers . | . . . Garrison Access . | . . . Data Cores Recovered . | . . . Used . | . . . Hacking Detections 6 | . 6 . Full Trace Events . | . . . Feedback Events . | . . . Feedback Blocked . | . . . Robot Schematics Acquired . | . . . Robots Built . | . . . Authchips . | . . . Time . | . . . Total Robot Build Rating . | . . . Part Schematics Acquired 2 | . 2 . Parts Built . | . . . Authchips . | . . . Time . | . . . Total Part Build Rating . | . . . Part Studies Acquired . | . . . Parts Repaired . | . . . Time . | . . . Parts Recycled . | . . . Recycled Matter . | . . . Retrieved Matter . | . . . Retrieved Components . | . . . Parts Scanalyzed . | . . . Part Schematics Acquired . | . . . Parts Damaged . | . . . Bothacking | -11 -10 -10 ------------ Run | Yrd Mat Min Used RIF Installer . | . . . Robots Hacked . | . . . Non-combat . | . . . Combat . | . . . Robot Hacks Applied . | . . . Relay Couplers Released . | . . . Fabnet Peak Effective % . | . . . Robots Rewired . | . . . Allies Hacked . | . . . Hacks Repelled . | . . . Allies | -11 -10 -10 -------- Run | Yrd Mat Min Total Allies 1 | . . 1 Largest Group 1 | . . 1 Highest-Rated Group 31 | . . 31 Highest-Rated Ally 31 | . . 31 Total Orders . | . . . Ally Attacks 3 | . . 3 Total Damage 43 | . . 43 Kills . | . . . Allies Corrupted . | . . . Allies Melted . | . . . Intel | -11 -10 -10 ------- Run | Yrd Mat Min Active Infowar (turns) 3350 | 38 3310 2 Seismic 3350 | 38 3310 2 Robot Analysis Total . | . . . Derelict Logs Recovered . | . . . Drone Launches . | . . . Drone Recoveries . | . . . Exploration | -11 -10 -10 ------------- Run | Yrd Mat Min Turns Passed 3889 | 147 3310 432 Spaces Moved 1134 | 80 910 144 Core 22 | 22 . . Treads . | . . . Legs 1112 | 58 910 144 Wheels . | . . . Hover . | . . . Flight . | . . . Fastest Speed 50 | 50 120 260 Average Speed 260 | 128 272 261 Slowest Speed 400 | 250 400 400 Overloaded Moves . | . . . Propulsion Burnouts . | . . . Robots Hopped . | . . . Potential Cave-ins . | . . . Cave-ins Triggered . | . . . Exploration Rate (%) 45 | 5 96 36 Regions Visited 2 Branch Regions 1 Pre-discovered Areas 2 | . 2 . Known Exits Taken . | . . . Unknown Exits Taken 2 | 1 1 . Scrap Searched 1 | . . 1 Spaces Dug . | . . . Terrain Destroyed 25 | . 25 . Melee . | . . . Projectile . | . . . AOE 25 | . 25 . Terrain Rammed . | . . . Walls Destroyed . | . . . Machines Disabled . | . . . Actions | -11 -10 -10 --------- Run | Yrd Mat Min Total 1883 | 101 1601 181 Wait 602 | . 578 24 Move 1132 | 79 909 144 Hop . | . . . Pick Up 24 | 5 19 . Fast Attach 9 | 6 3 . Attach 2 | 1 1 . Detach . | . . . Swap 5 | . 5 . Drop 6 | . 6 . Fire 94 | 10 73 11 Melee . | . . . Ram . | . . . Kick 9 | . 7 2 Crush . | . . . Escape Stasis . | . . . Rewire . | . . . Trap . | . . . Miscellaneous . | . . . Route ------- -11/Scrapyard -10/Materials (discovered 4 exits: [*Mat x3] / [*Min]) -10/Mines (discovered 2 exits: [*Mat x2]) History --------- Turn | Location | Event 9 | -11/Scrapyard | Discovered new exit (range 15) 148 | -11/Scrapyard | Entered Materials 301 | -10/Materials | Build established: Mutant 309 | -10/Materials | Discovered new exit (range 8) 932 | -10/Materials | Discovered new exit (range 16) 980 | -10/Materials | Discovered new exit (range 7) 1353 | -10/Materials | Discovered new exit (range 20) 3141 | -10/Materials | Core integrity fell below 50% 3448 | -10/Materials | Build established: Scavenger-Mutant 3458 | -10/Materials | Entered Mines 3518 | -10/Mines | Discovered new exit (range 6) 3542 | -10/Mines | Discovered new exit (range 10) 3568 | -10/Mines | Met a Derelict bent on vengeance 3818 | -10/Mines | Assembled infested the area 3841 | -10/Mines | Received a Mining Laser from a helpful Derelict 3868 | -10/Mines | Core integrity fell below 20% 3890 | -10/Mines | Destroyed by D-53 Grenadier with Mini Grenade Launcher Last Messages --------------- 03666_ Found 32 Matter. 03666_ Found EM Pulse Gun. 03666_ Found Hover Unit. 03666_ Found Utility Shielding. 03666_ Found 70 Matter. 03667_ Acquired 70 matter. 03753_ K-01 Serf cleans the Laser Drill. 03818_ ALERT: Infestation in the mines, dispatching Demolisher response squad. 03839_ A derelict emerges from the shadows: "What are you doing alone down here?" 03841_ UY-9KD(g): "And why aren't you carrying a mining laser?! Certainly you don't want THEM to uncover you when the ceiling comes crashing down? Here, take my spare." 03844_ UY-9KD(g): "You're apparently new around these parts, I'll cover you." 03867_ Aluminum Leg destroyed. 03869_ UY-9KD(g) destroyed. 03873_ The unstable cave ceiling collapses. Map ----- +----------------------------------------------------+ | ???????# #??? | | ???????# ## #??? | | ?####### ### #### ##??? | | #?## ##??## #???? | | ?####### #??# ##???## #??? | | ??????##=[#??## ##???# #??? | | ??????# ! #??## #???## ##??? | | ??????# %##?## #????####???? | | ????? ##??# #???????????? | | ???# ????# #???????????? | | ?? ##????# #???????????? | | ?????## """ #???????????? | | ######???### """ #???????????? | | ????????## """ #???????????? | | ????????# #???????????? | | ????????# ##???????????? | | ????????## ####????????????? | | ?????????# ####???????????????? | | ?????????# #??????????????????? | | ?????????# ####???????????????? | | ???????### ##??????????????? | | ??????## #??????????????? | | ??????# #??????#####???? | | ??????# ####??## ####? | | ?????## #??# # #? | | ## ## ## #??# @ #? | | # ## #??# # # | | ### #??# %[ #? | | #??## ! # | | # #??# d # | | ### # ### #?## ## | | ??## ####### #?# ###r ##? | | ???####??????# #?# ## ##?? | | ?????????????# #?# | ##??? | | ????????????? #?## # ##???? | | ?????????????###??# ## ###????? | | ??????????????????# #####??????? | | ??????????????????# #??????????? | | ??????????????????# #??????????? | | ??????????????????# #??????????? | | ??????????????????# #??????????? | | ??????????????????# #??????????? | | ??????????????????? #??????????? | | ??????????????????? ???????????? | | ??????????????????? ???????????? | | ??????????????????? ???????????? | | ??????????????????? ???????????? | | ??????????????????? ???????????? | | ???????????????????#???????????? | | ???????????????????????????????? | +----------------------------------------------------+ Best States ------------- Heat Dissipation 25 Energy Generation 10 Energy Capacity 250 Matter Stores 300 Matter Capacity 300 Sight Range 16 Terrain Scan Density 10 Evasion (%) 55 Item Schematics ----------------- Hcp. Storage Unit | -10/Materials | Hacked Huge Storage Unit | -10/Materials | Hacked Robot Schematics ------------------ None Fabricated ------------ Nothing Repaired ---------- Nothing Studied --------- None Alien Tech Used ----------------- None Achievements -------------- None Challenges ------------ None Game ------ Seed MiniOvertunedArachnoskeleton Manual? 0 Play Time 00:12:47 Cumulative 322.8 hours Start 2025.10.24 @ 10:40:33 End 2025.10.24 @ 10:53:40 Sessions 1 Manual Loads 0 Difficulty Rogue Special Mode None Game No. 230 Rogue 230 Adventurer 0 Explorer 0 Win Type - Total 20 Types 9/0/6/1/1/0/1/1/0/1 Lore% 82 Gallery% 76 Achievement% 54 Wizard Run 0 Options --------- Layout 1 ASCII 0 Keyboard 0 Movement Mouse Keybinds 0 Fullscreen 2 Font 24/Smallcaps Map View 50x35 Zoom Use 0% Tactical HUD 1 Map Filters NONE Filters NONE Steam 1 RUN: 0d55af91-c6da-4a27-be65-99eedcfc2f41